Workbook

Sheet Sheet1
B2: المبلغ المحصل من العقار | E2: =SUM(H22:H51) -> 0 | G2: الـــــــــــشـــــــــــهــــــــــــــــــــــــــــــــــــر
B4: المبلغ المطلوب من ( ملاك ــــــــــ سكان ) العقار شهرياً | G4: المبلغ المطلوب
B5: المبلغ المطلوب من كل شقة بالادوار التى بها اسانسير | G5: 400
B6: المبلغ المطلوب من كل شقة بالادوار التى لايوجد بها اسانسير | G6: 300
B7: المبلغ المطلوب من الشقق المقفولة ولايوجد بها سكان | G7: 50
B9: الخدمـــــــــــــــــــــــــــــــــــــــــــــــــــــــــــــــــــــــــــــــــــــــــــــات واعمــــــــــــــــــــــــــــال الصيانة الشهرية | G9: المبلغ المطلوب | H9: المبلغ المدفوع مقدماً | I9: المبلغ المتبقى للخدمات | J9: اجمالى المدفوع | K9: المبلغ المتبقى بالصندوق
B10: راتب حارس العقار | G10: 1500 | H10: 1000 | I10: =G10-H10 -> 500 | J10: =G10-I10 -> 1000 | K10: =SUM((E2)-J10:J18) -> -1000
B11: مبلغ صيانة الاسانسير ( اجر عامل ــــــــــ لوازم اعمال الصيانة ) | I11: =G11-H11 -> 0 | J11: 0
B12: مبلغ صيانة المياه ( اجر عامل ـــــــــ مواتير ـــــــــ مواسير ــــــــــ لوازم اعمال الصيانة ) | I12: 0 | J12: 0
B13: مبلغ صيانة الكهرباء ( اجر عامل ـــــــــ لوازم اعمال الصيانة ) | I13: 0 | J13: 0
B14: مبلغ اعمال صيانة اخرى | I14: 0 | J14: 0
B15: مبلغ المياه التجارى | I15: 0 | J15: 0
B16: مبلغ الكهرباء التجارى | I16: 0 | J16: 0
B17: مبلغ خامات نظافة ( شهرى ) | I17: 0 | J17: 0
B18: مبلغ نظير خدمات اخرى | I18: 0 | J18: =G18-I18 -> 0
B20: نوع السكن | C20: الدور | D20: اسانسير | E20: رقم الشقه | F20: اسم صاحب الشقه | G20: رقم الهاتف | H20: المبلغ المحصل | I20: المبلغ المتبقي | J20: توزيع المبلغ الشهري على الخدمات | S20: اجمالى المصروفات | T20: المتبقي بالصندوق
J21: اجر حارس العقار | K21: كهرباء | L21: مياه | M21: صيانة اسانسير | N21: صيانة كهرباء | O21: صيانة مياه | P21: اعمال صيانة اخري | Q21: خامات نظافة | R21: مصروفات اخري
B22: ساكن | C22: الاول | D22: لايوجد اسانسير | E22: 1 | J22: مطلوب معادلة لمعرفة النسبة من الاجر الاساسي من الخدمات واعمال الصيانة على كل شقة ماعدا الشقق الغير ساكنة
B23: ساكن | E23: 2
B24: ساكن | E24: 3
B25: ساكن | C25: الثانى | D25: يوجد اسانسير | E25: 4
B26: ساكن | E26: 5
B27: ساكن | E27: 6
B28: ساكن | C28: الثالث | D28: يوجد اسانسير | E28: 7
B29: ساكن | E29: 8
B30: ساكن | E30: 9
B31: ساكن | C31: الرابع | D31: يوجد اسانسير | E31: 10
B32: ساكن | E32: 11
B33: ساكن | E33: 12
B34: ساكن | C34: الخامس | D34: يوجد اسانسير | E34: 13
B35: غير ساكن | E35: 14
B36: ساكن | E36: 15
B37: ساكن | C37: السادس | D37: يوجد اسانسير | E37: 16
B38: ساكن | E38: 17
B39: ساكن | E39: 18
B40: ساكن | C40: السابع | D40: يوجد اسانسير | E40: 19
B41: ساكن | E41: 20
B42: غير ساكن | E42: 21
B43: ساكن | C43: الثامن | D43: يوجد اسانسير | E43: 22
B44: ساكن | E44: 23
B45: ساكن | E45: 24
B46: ساكن | C46: التاسع | D46: يوجد اسانسير | E46: 25
B47: ساكن | E47: 26
B48: ساكن | E48: 27
B49: ساكن | C49: العاشر | D49: يوجد اسانسير | E49: 28
B50: ساكن | E50: 29
B51: ساكن | E51: 30

Sheet الفرق (hidden)
B2: المحضر | I2: التوزيع | O2: الفرق
B3: م | C3: القسم | D3: المستحق | E3: المستحق | F3: الكسب | G3: الصافى | I3: م | J3: القسم | K3: المستحق | L3: الكسب | M3: الصافى | O3: الصافى
B4: قطاع الشمــــــــــــــال | I4: قطاع الشمــــــــــــــال | O4: قطاع الشمال
B5: =ROW()-4 -> 1 | C5: =#REF! ->  | D5: =IF(#REF!=0,70,IF(#REF!=0,#REF!*70,IF((#REF!*50/#REF!)<70,70,MROUND(#REF!*50/#REF!,5)))) ->  | E5: =IF(D5<=70,#REF!*70,IF(D5<=70,#REF!*70,D5*#REF!)) ->  | F5: =IF(D5<100,0,MROUND(D5*10%,5)*#REF!) ->  | G5: =E5-F5 ->  | I5: =ROW()-4 -> 1 | J5: =#REF! ->  | K5: ='[1]اجمالى افراد شمال'!$B$20 -> 14960 | L5: ='[1]اجمالى افراد شمال'!$N$20 -> 720 | M5: =K5-L5 -> 14240 | O5: =G5-M5 -> 
B6: =ROW()-4 -> 2 | C6: =#REF! ->  | D6: =IF(#REF!=0,70,IF(#REF!=0,#REF!*70,IF((#REF!*50/#REF!)<70,70,MROUND(#REF!*50/#REF!,5)))) ->  | E6: =IF(D6<=70,#REF!*70,IF(D6<=70,#REF!*70,D6*#REF!)) ->  | F6: =IF(D6<100,0,MROUND(D6*10%,5)*#REF!) ->  | G6: =E6-F6 ->  | I6: =ROW()-4 -> 2 | J6: =#REF! ->  | K6: ='[1]اجمالى افراد شمال'!$B$15 -> 11680 | L6: ='[1]اجمالى افراد شمال'!$N$15 -> 735 | M6: =K6-L6 -> 10945 | O6: =G6-M6 -> 
B7: 3 | C7: =#REF! ->  | D7: =IF(#REF!=0,70,IF(#REF!=0,#REF!*70,IF((#REF!*50/#REF!)<70,70,MROUND(#REF!*50/#REF!,5)))) ->  | E7: =IF(D7<=70,#REF!*70,IF(D7<=70,#REF!*70,D7*#REF!)) ->  | F7: =IF(D7<100,0,MROUND(D7*10%,5)*#REF!) ->  | I7: 3 | J7: =#REF! ->  | K7: ='[1]اجمالى افراد شمال'!$B$19 -> 3150 | L7: ='[1]اجمالى افراد شمال'!$N$19 -> 200 | M7: 2950
B8: 4 | C8: =#REF! ->  | D8: =IF(#REF!=0,70,IF(#REF!=0,#REF!*70,IF((#REF!*50/#REF!)<70,70,MROUND(#REF!*50/#REF!,5)))) ->  | E8: =IF(D8<=70,#REF!*70,IF(D8<=70,#REF!*70,D8*#REF!)) ->  | F8: =IF(D8<100,0,MROUND(D8*10%,5)*#REF!) ->  | I8: 4 | J8: =#REF! ->  | K8: ='[1]اجمالى افراد شمال'!$B$16 -> 5425 | L8: ='[1]اجمالى افراد شمال'!$N$16 -> 300 | M8: 5125
B9: 5 | C9: =#REF! ->  | D9: =IF(#REF!=0,70,IF(#REF!=0,#REF!*70,IF((#REF!*50/#REF!)<70,70,MROUND(#REF!*50/#REF!,5)))) ->  | E9: =IF(D9<=70,#REF!*70,IF(D9<=70,#REF!*70,D9*#REF!)) ->  | F9: =IF(D9<100,0,MROUND(D9*10%,5)*#REF!) ->  | I9: 5 | J9: =#REF! ->  | K9: ='[1]اجمالى افراد شمال'!$B$21 -> 20125 | L9: ='[1]اجمالى افراد شمال'!$N$21 -> 1200 | M9: 18925
B10: 6 | C10: =#REF! ->  | D10: =IF(#REF!=0,70,IF(#REF!=0,#REF!*70,IF((#REF!*50/#REF!)<70,70,MROUND(#REF!*50/#REF!,5)))) ->  | E10: =IF(D10<=70,#REF!*70,IF(D10<=70,#REF!*70,D10*#REF!)) ->  | F10: =IF(D10<100,0,MROUND(D10*10%,5)*#REF!) ->  | I10: 6 | J10: =#REF! ->  | K10: ='[1]اجمالى افراد شمال'!$B$17 -> 3515 | L10: ='[1]اجمالى افراد شمال'!$N$17 -> 160 | M10: 3355
B11: 7 | C11: =#REF! ->  | D11: =IF(#REF!=0,70,IF(#REF!=0,#REF!*70,MROUND(((#REF!+#REF!)*50)/(#REF!+#REF!),5))) ->  | E11: =IF(D11<=70,#REF!*70,IF(D11<=70,#REF!*70,D11*#REF!)) ->  | F11: =IF(D11<100,0,MROUND(D11*10%,5)*#REF!) ->  | I11: 7 | J11: =#REF! ->  | K11: ='[1]اجمالى افراد شمال'!$B$18 -> 6300 | L11: ='[1]اجمالى افراد شمال'!$N$18 -> 330 | M11: 5970
B12: 8 | C12: =#REF! ->  | D12: =IF(#REF!=0,70,IF(#REF!=0,#REF!*70,MROUND((#REF!+#REF!)*50/(#REF!+#REF!),5))) ->  | E12: =IF(D12<=70,#REF!*70,IF(D12<=70,#REF!*70,D12*#REF!)) ->  | F12: =IF(D12<100,0,MROUND(D12*10%,5)*#REF!) ->  | I12: 8 | J12: =#REF! ->  | K12: ='[1]اجمالى افراد شمال'!$B$22 -> 1200 | L12: ='[1]اجمالى افراد شمال'!$N$22 -> 0 | M12: 1200
B13: 9 | C13: =#REF! ->  | D13: =IF(#REF!=0,#REF!*70,IF((#REF!*50/#REF!)<70,70,MROUND(#REF!*50/#REF!,5))) ->  | E13: =IF(#REF!=0,#REF!*70,D13*#REF!) ->  | F13: =IF((D13/#REF!)<100,0,الفرق!D13*10%) ->  | I13: 9 | J13: =#REF! ->  | K13: ='[1]اجمالى افراد شمال'!$B$13 -> 14800 | L13: ='[1]اجمالى افراد شمال'!$N$13 -> 0 | M13: 14800
B14: 10 | C14: =#REF! ->  | D14: =IF(#REF!=0,#REF!*70,IF((#REF!*50/#REF!)<70,70,MROUND(#REF!*50/#REF!,5))) ->  | E14: =IF(#REF!=0,#REF!*70,D14*#REF!) ->  | F14: =IF((D14/#REF!)<100,0,الفرق!D14*10%) ->  | I14: 10 | J14: =#REF! ->  | K14: ='[1]اجمالى افراد شمال'!$B$14 -> 12000 | L14: ='[1]اجمالى افراد شمال'!$N$14 -> 0 | M14: 12000
B15: 11 | C15: =#REF! ->  | D15: =IF(#REF!=0,#REF!*70,IF((#REF!*50/#REF!)<70,70,MROUND(#REF!*50/#REF!,5))) ->  | E15: =IF(#REF!=0,#REF!*70,D15*#REF!) ->  | F15: =IF((D15/#REF!)<100,0,الفرق!D15*10%) ->  | I15: 11 | J15: =#REF! ->  | K15: ='[1]اجمالى افراد شمال'!$B$23 -> 6000 | L15: ='[1]اجمالى افراد شمال'!$N$23 -> 0 | M15: 6000
B16: 12 | C16: =#REF! ->  | D16: =IF(#REF!=0,#REF!*70,IF((#REF!*50/#REF!)<70,70,MROUND(#REF!*50/#REF!,5))) ->  | E16: =IF(#REF!=0,#REF!*70,D16*#REF!) ->  | F16: =IF((D16/#REF!)<100,0,الفرق!D16*10%) ->  | I16: 12 | J16: =#REF! ->  | K16: ='[1]اجمالى افراد شمال'!$B$24 -> 1800 | L16: ='[1]اجمالى افراد شمال'!$N$24 -> 0 | M16: 1800
B17: 13 | C17: =#REF! ->  | D17: =IF(#REF!=0,#REF!*70,IF((#REF!*50/#REF!)<70,70,MROUND(#REF!*50/#REF!,5))) ->  | E17: =IF(#REF!=0,#REF!*70,D17*#REF!) ->  | F17: =IF((D17/#REF!)<100,0,الفرق!D17*10%) ->  | I17: 13 | J17: =#REF! ->  | K17: ='[1]اجمالى افراد شمال'!$B$28 -> 1700 | L17: ='[1]اجمالى افراد شمال'!$N$28 -> 0 | M17: 1700
B18: 14 | C18: =#REF! ->  | D18: =IF(#REF!=0,#REF!*70,IF((#REF!*50/#REF!)<70,70,MROUND(#REF!*50/#REF!,5))) ->  | E18: =IF(#REF!=0,#REF!*70,D18*#REF!) ->  | F18: =IF((D18/#REF!)<100,0,الفرق!D18*10%) ->  | I18: 14 | J18: =#REF! ->  | K18: ='[1]اجمالى افراد شمال'!$B$26 -> 2900 | L18: ='[1]اجمالى افراد شمال'!$N$26 -> 0 | M18: 2900
B19: 15 | C19: =#REF! ->  | D19: =IF(#REF!=0,#REF!*70,IF((#REF!*50/#REF!)<70,70,MROUND(#REF!*50/#REF!,5))) ->  | E19: =IF(#REF!=0,#REF!*70,D19*#REF!) ->  | F19: =IF((D19/#REF!)<100,0,الفرق!D19*10%) ->  | I19: 15 | J19: =#REF! ->  | K19: ='[1]اجمالى افراد شمال'!$B$29 -> 1800 | L19: ='[1]اجمالى افراد شمال'!$N$29 -> 0 | M19: 1800
B20: 16 | C20: =#REF! ->  | D20: =IF(#REF!=0,#REF!*70,IF((#REF!*50/#REF!)<70,70,MROUND(#REF!*50/#REF!,5))) ->  | E20: =IF(#REF!=0,#REF!*70,D20*#REF!) ->  | F20: =IF((D20/#REF!)<100,0,الفرق!D20*10%) ->  | I20: 16 | J20: =#REF! ->  | K20: ='[1]اجمالى افراد شمال'!$B$27 -> 2900 | L20: ='[1]اجمالى افراد شمال'!$N$27 -> 0 | M20: 2900
B21: 17 | C21: =#REF! ->  | D21: =IF(#REF!=0,#REF!*70,IF((#REF!*50/#REF!)<70,70,MROUND(#REF!*50/#REF!,5))) ->  | E21: =IF(#REF!=0,#REF!*70,D21*#REF!) ->  | F21: =IF((D21/#REF!)<100,0,الفرق!D21*10%) ->  | I21: 17 | J21: =#REF! ->  | K21: ='[1]اجمالى افراد شمال'!$B$25 -> 500 | L21: ='[1]اجمالى افراد شمال'!$N$25 -> 0 | M21: 500
B22: 18 | C22: =#REF! ->  | D22: =IF(#REF!=0,#REF!*70,IF((#REF!*50/#REF!)<70,70,MROUND(#REF!*50/#REF!,5))) ->  | E22: =IF(#REF!=0,#REF!*70,D22*#REF!) ->  | F22: =IF((D22/#REF!)<100,0,الفرق!D22*10%) ->  | I22: 18 | J22: =#REF! ->  | K22: ='[1]اجمالى افراد شمال'!$B$30 -> 4000 | L22: ='[1]اجمالى افراد شمال'!$N$30 -> 0 | M22: =K22-L22 -> 4000
B23: 19 | C23: =#REF! ->  | D23: =IF(#REF!=0,#REF!*70,IF((#REF!*50/#REF!)<70,70,MROUND(#REF!*50/#REF!,5))) ->  | E23: =IF(#REF!=0,#REF!*70,D23*#REF!) ->  | F23: =IF((D23/#REF!)<100,0,الفرق!D23*10%) ->  | I23: 19 | J23: =#REF! ->  | K23: ='[1]اجمالى افراد شمال'!$B$31 -> 3700 | L23: ='[1]اجمالى افراد شمال'!$N$31 -> 0 | M23: =K23-L23 -> 3700
B24: 20 | C24: =#REF! ->  | D24: =#REF!*#REF! ->  | E24: =D24 ->  | F24: =IF((D24/#REF!)<100,0,الفرق!D24*10%) ->  | I24: 20 | J24: =#REF! ->  | K24: ='[1]اجمالى افراد شمال'!$B$32 -> 6600 | L24: ='[1]اجمالى افراد شمال'!$N$32 -> 0 | M24: 6600
B25: الاجمـــــــــــــــــــــــــــــــــــــــالى | D25: =SUM(D5:D24) ->  | G25: =SUM(G5:G24) ->  | I25: الاجمـــــــــــــــــــــــــــــــــــــــالى | M25: =SUM(M5:M24) -> 121410 | O25: =SUM(O5:O24) -> 
B26: قطاع الــــــــغـــــــرب | I26: قطاع الــــــــغـــــــرب | O26: قطاع الغرب
B27: 1 | C27: =#REF! ->  | D27: =IF(#REF!=0,70,IF(#REF!=0,#REF!*70,IF((#REF!*50/#REF!)<70,70,MROUND(#REF!*50/#REF!,5)))) ->  | E27: =IF(D27<=70,#REF!*70,IF(D27<=70,#REF!*70,D27*#REF!)) ->  | F27: =IF(D27<100,0,MROUND(D27*10%,5)*#REF!) ->  | G27: =E27-F27 ->  | I27: 1 | J27: =#REF! ->  | K27: ='[2]اجمالى افراد الغرب'!$B$13 -> 8540 | L27: ='[2]اجمالى افراد الغرب'!$S$13 -> 0 | M27: =K27-L27 -> 8540 | O27: =G27-M27 -> 
B28: 2 | C28: =#REF! ->  | D28: =IF(#REF!=0,70,IF(#REF!=0,#REF!*70,IF((#REF!*50/#REF!)<70,70,MROUND(#REF!*50/#REF!,5)))) ->  | E28: =IF(D28<=70,#REF!*70,IF(D28<=70,#REF!*70,D28*#REF!)) ->  | F28: =IF(D28<100,0,MROUND(D28*10%,5)*#REF!) ->  | G28: =E28-F28 ->  | I28: 2 | J28: =#REF! ->  | K28: ='[2]اجمالى افراد الغرب'!$B$14 -> 2700 | L28: ='[2]اجمالى افراد الغرب'!$S$14 -> 0 | M28: 2700 | O28: =G28-M28 -> 
B29: 3 | C29: =#REF! ->  | D29: =IF(#REF!=0,70,IF(#REF!=0,#REF!*70,IF((#REF!*50/#REF!)<70,70,MROUND(#REF!*50/#REF!,5)))) ->  | E29: =IF(D29<=70,#REF!*70,IF(D29<=70,#REF!*70,D29*#REF!)) ->  | F29: =IF(D29<100,0,MROUND(D29*10%,5)*#REF!) ->  | I29: 3 | J29: =#REF! ->  | K29: ='[2]اجمالى افراد الغرب'!$B$17 -> 4875 | L29: ='[2]اجمالى افراد الغرب'!$S$17 -> 0 | M29: 4875
B30: 4 | C30: =#REF! ->  | D30: =IF(#REF!=0,70,IF(#REF!=0,#REF!*70,IF((#REF!*50/#REF!)<70,70,MROUND(#REF!*50/#REF!,5)))) ->  | E30: =IF(D30<=70,#REF!*70,IF(D30<=70,#REF!*70,D30*#REF!)) ->  | F30: =IF(D30<100,0,MROUND(D30*10%,5)*#REF!) ->  | I30: 4 | J30: =#REF! ->  | K30: ='[2]اجمالى افراد الغرب'!$B$15 -> 3700 | L30: ='[2]اجمالى افراد الغرب'!$S$15 -> 0 | M30: 3700
B31: 5 | C31: =#REF! ->  | D31: =IF(#REF!=0,70,IF(#REF!=0,#REF!*70,IF((#REF!*50/#REF!)<70,70,MROUND(#REF!*50/#REF!,5)))) ->  | E31: =IF(D31<=70,#REF!*70,IF(D31<=70,#REF!*70,D31*#REF!)) ->  | F31: =IF(D31<100,0,MROUND(D31*10%,5)*#REF!) ->  | I31: 5 | J31: =#REF! ->  | K31: ='[2]اجمالى افراد الغرب'!$B$16 -> 7875 | L31: ='[2]اجمالى افراد الغرب'!$S$16 -> 0 | M31: 7875
B32: 6 | C32: =#REF! ->  | D32: =IF(#REF!=0,70,IF(#REF!=0,#REF!*70,IF((#REF!*50/#REF!)<70,70,MROUND(#REF!*50/#REF!,5)))) ->  | E32: =IF(D32<=70,#REF!*70,IF(D32<=70,#REF!*70,D32*#REF!)) ->  | F32: =IF(D32<100,0,MROUND(D32*10%,5)*#REF!) ->  | I32: 6 | J32: =#REF! ->  | K32: ='[2]اجمالى افراد الغرب'!$B$18 -> 11960 | L32: ='[2]اجمالى افراد الغرب'!$S$18 -> 0 | M32: 11960
B33: الاجمـــــــــــــــــــــــــــــــــــــــالى | D33: =SUM(D27:D32) ->  | G33: =SUM(G27:G32) ->  | I33: الاجمـــــــــــــــــــــــــــــــــــــــالى | M33: =SUM(M27:M32) -> 39650 | O33: =SUM(O27:O32) -> 
B34: قطاع اكتوبر | I34: قطاع اكتوبر | O34: قطاع اكتوبر
B35: 1 | C35: =#REF! ->  | D35: =IF(#REF!=0,70,IF(#REF!=0,#REF!*70,IF((#REF!*50/#REF!)<70,70,MROUND(#REF!*50/#REF!,5)))) ->  | E35: =IF(#REF!=0,#REF!*70,D35*#REF!) ->  | F35: =IF(D35<100,0,MROUND(D35*10%,5)*#REF!) ->  | G35: =E35-F35 ->  | I35: 1 | J35: =#REF! ->  | K35: ='[3]اجمالى افراد اكتوبر'!$B$13 -> 18000 | L35: ='[3]اجمالى افراد اكتوبر'!$S$13 -> 0 | M35: =K35-L35 -> 18000 | O35: =G35-M35 -> 
B36: 2 | C36: =#REF! ->  | D36: =IF(#REF!=0,70,IF(#REF!=0,#REF!*70,IF((#REF!*50/#REF!)<70,70,MROUND(#REF!*50/#REF!,5)))) ->  | E36: =IF(#REF!=0,#REF!*70,D36*#REF!) ->  | F36: =IF(D36<100,0,MROUND(D36*10%,5)*#REF!) ->  | G36: =E36-F36 ->  | I36: 2 | J36: =#REF! ->  | K36: ='[3]اجمالى افراد اكتوبر'!$B$14 -> 4900 | L36: ='[3]اجمالى افراد اكتوبر'!$S$14 -> 0 | M36: 4900 | O36: =G36-M36 -> 
B37: 3 | C37: =#REF! ->  | D37: =IF(#REF!=0,70,IF(#REF!=0,#REF!*70,IF((#REF!*50/#REF!)<70,70,MROUND(#REF!*50/#REF!,5)))) ->  | E37: =IF(#REF!=0,#REF!*70,D37*#REF!) ->  | F37: =IF(D37<100,0,MROUND(D37*10%,5)*#REF!) ->  | I37: 3 | J37: =#REF! ->  | K37: ='[3]اجمالى افراد اكتوبر'!$B$16 -> 4700 | L37: 0 | M37: 4700 | O37: =M37 -> 4700
B38: 4 | C38: =#REF! ->  | D38: =IF(#REF!=0,70,IF(#REF!=0,#REF!*70,IF((#REF!*50/#REF!)<70,70,MROUND(#REF!*50/#REF!,5)))) ->  | E38: =IF(#REF!=0,#REF!*70,D38*#REF!) ->  | F38: =IF(D38<100,0,MROUND(D38*10%,5)*#REF!) ->  | I38: 4 | J38: =#REF! ->  | K38: ='[3]اجمالى افراد اكتوبر'!$B$17 -> 15000 | L38: ='[3]اجمالى افراد اكتوبر'!$S$17 -> 0 | M38: 15000
B39: 5 | C39: =#REF! ->  | D39: =#REF! ->  | E39: =#REF! ->  | F39: ='[3]اجهزة معاونه اكتوبر'!$S$232 -> 0 | I39: 5 | J39: =#REF! ->  | K39: ='[3]اجمالى افراد اكتوبر'!$B$19 -> 248900 | L39: ='[3]اجمالى افراد اكتوبر'!$S$19 -> 35838 | M39: 213062
B40: 6 | C40: =#REF! ->  | D40: =#REF!*#REF! ->  | E40: =D40 ->  | F40: 0 | G40: =D40-F40 ->  | I40: 6 | J40: =#REF! ->  | K40: ='[3]اجمالى افراد اكتوبر'!$B$18 -> 1150 | L40: ='[3]اجمالى افراد اكتوبر'!$S$18 -> 0 | M40: 1150
B41: الاجمـــــــــــــــــــــــــــــــــــــــالى | D41: =SUM(D35:D40) ->  | G41: =SUM(G35:G40) ->  | I41: الاجمـــــــــــــــــــــــــــــــــــــــالى | M41: =SUM(M35:M40) -> 256812 | O41: =SUM(O35:O40) -> 
B42: قطاع الطرق الجنوبية | I42: قطاع الطرق الجنوبية | O42: قطاع الطرق
B43: 1 | C43: =#REF! ->  | D43: =IF(#REF!=0,70,IF(#REF!=0,#REF!*70,IF((#REF!*50/#REF!)<70,70,MROUND(#REF!*50/#REF!,5)))) ->  | E43: =IF(#REF!=0,#REF!*70,D43*#REF!) ->  | F43: =IF(D43<100,0,MROUND(D43*10%,5)*#REF!) ->  | G43: =E43-F43 ->  | I43: 1 | J43: =#REF! ->  | K43: ='[4]ضباط الطرق'!$B$134 -> 16800 | L43: ='[4]ضباط الطرق'!$N$134 -> 190 | M43: =K43-L43 -> 16610 | O43: =G43-M43 -> 
B44: اجمالى نهــــــــــــــــــــائى | D44: =D25+D33+D41+D43 ->  | G44: =G25+G33+G41+G43 ->  | I44: اجمالى نهــــــــــــــــــــائى | M44: =M25+M33+M41+M43 -> 434482 | O44: =O25+O33+O41+O43 -> 
